{"text_format":"1","workbook":"xlsx","n_sheets":7,"sheets":["1_Cover page","2_TBRA (A)","3_Supportive Services (B)","4_Operating Assistance (C1)","5_Capacity Building (C2)","6_Checklist","List"],"not_rendered":{"charts":0,"images":1,"macros":1,"external_links":0,"defined_names":12,"comments":0,"pivot_tables":0},"unopened":[],"bounds":{"document_bytes":16777216,"sheet_cells":100000,"rows_first":2000,"rows_last":500,"rows_between":2000,"halvings":0,"cell_chars":16384,"cell_head_chars":4096},"cells_cut":0,"cells_raw":0,"read":"whole","date_system":"1900"}

{"sheet":"1_Cover page","index":0,"n_rows":51,"n_cols":7,"rows_kept":51,"cut":false,"hidden":false,"merged":[[0,0,0,2],[46,1,46,2],[1,0,1,2],[2,0,2,2],[3,0,3,2],[5,0,5,2],[6,0,6,2],[8,0,8,2],[7,1,7,2]]}
[{"$error":"#VALUE!"}]
["HUD HOME-AMERICAN RESCUE PLAN ACT (HOME-ARP) "]
["HOME-ARP SERVICES AND NON-PROFITS ASSISTANCE NOFA"]
["Cover Page"]
[null,"APP #:","(to be completed by LHC)"]
["Please review Program Guidelines and Requirements before proceeding"]
["Instructions: \n1.Complete all blue shaded cells. \n2. Use the dropdown menu to select from available options, where provided.   \n3. Green cells populate automatically.\nThe Program has established an Application Portal for the submittal of your Application: https://lhchomearp.housinggrantmtg.com/auth/login/5ltoxfxq5.  Please select \"Register\" to create a unique unsername and password for revisiting the site and submitting your Application and supporting documents."]
[null,"Link to Application Portal"]
["Applicants must separately upload: 1. Secretary of State Registration, 2. Organization Management Chart, 3. Resumes of Staff,\n4. Organizational Project Experience, 5. Documentation Demonstrating Partnerships to Serve the Qualified Population, \n6. 2023 Financial Statements, and 7. Cash Flow Statements. (See Checklist tab)."]
[null,"APPLICANT INFORMATION"]
[1,"Applicant Name (Organization)"]
[{"$f":"A11+0.01","v":1.01},"Applicant Address"]
[{"$f":"A12+0.01","v":1.02},"Applicant City"]
[1.03,"Applicant State","Louisiana "]
[1.04,"Applicant 5-digit zip code (example: 70508)"]
[1.05,"Applicant SAMs Registration Number (if applied but not received yet, note application date)"]
[1.06,"Applicant Organization Type"]
[1.07,"Authorized Representative First Name"]
[1.08,"Authorized Representative Last Name"]
[1.0900000000000001,"Authorized Representative Title "]
[1.1000000000000001,"Applicant Authorized Phone Number"]
[{"$f":"A21+0.01","v":1.1100000000000001},"Is this a celphone #"]
[1.1200000000000001,"Applicant Authorized Contact Email"]
[null,"Describe the applicant’s fiscal management structure.  (Upoad the following 2023 Financial Statements, and Cash Flow Statements.)"]
[{"$f":"A23+0.01","v":1.1300000000000001},"Please list the Parish(es) where the entity has office locations. (select all that apply)"]
[{"$f":"A25+0.01","v":1.1400000000000001},"Has the entity been funded by LHC in the past?"]
[1.1500000000000001,"Has the entity successfully completed work with LHC in the past 5 years?"]
[1.1600000000000001,"Is the entity in good standing with LHC, local government & the state? If there has been any litigation or bankruptcies during the past seven years, or if there is pending litigation or judgment, attach a list describing these incidences."]
[{"$f":"A28+0.01","v":1.1700000000000002},"Describe your organization's management structure.  (Please Upload Organizational Chart)"]
[]
[null,"SERVICE AREA INFORMATION"]
[{"$f":"A29+0.01","v":1.1800000000000002},"In which Continuum of Care does the Applicant participate? (Select all that apply).  See NOFA Appendix D."]
[{"$f":"A32+0.01","v":1.1900000000000002},"Select the Parish(es) that make up the coverage area of the Applicant experience in providing services. (Select all that apply)"]
[1.2000000000000002,"Is the entity affiliated with a parent organization or a stand-alone?"]
[1.2100000000000002,"If affiliated with a parent organization, please provide name of the parent organization "]
[1.2200000000000002,"Has your organization been in existence for 2 years or more from April 19, 2024?"]
[1.2300000000000002,"Has your organization been providing comparable services for 2 years? "]
[1.2400000000000002,"Congressional District(s)"]
[1.25,"Legislative District(s): House"]
[1.26,"Legislative District(s): Senate"]
[]
[null,"HOME-ARP FUNDING"]
[{"$f":"A40+0.01","v":1.27},"Total HOME-ARP Program Funds Requested (Part A & B)",{"$f":"'2_TBRA (A)'!C62+'3_Supportive Services (B)'!C64","v":0},null,null,null,"Yes"]
[{"$f":"A43+0.01","v":1.28},"Total HOME-ARP Nonprofit Assistance Funds Requested (Part C)",{"$f":"'4_Operating Assistance (C1)'!D45+'5_Capacity Building (C2)'!D40","v":0},null,null,null,"No"]
[{"$f":"A44+0.01","v":1.29},"Total Leverage (match or other sources contribution)",{"$f":"SUM(C43:C44)","v":0}]
[]
[null,"Certification: To the best of my knowledge and belief, data and information in this application and the accompanying attachments is true and correct. This application has been duly authorized by the applicant's governing body.  I have read and understand the LHC HOME-ARP funding process, application threshold requirements, and program summary requirements. I understand these requirements may be revised as additional HOME-ARP guidance is released by HUD. The applicant will comply with all HOME-ARP requirements throughout the term of the project."]
[]
[null,"Signature of Certifying Official \n(Athorized by typed name)"]
[null,"Title"]
[null,"Date"]

{"sheet":"2_TBRA (A)","index":1,"n_rows":72,"n_cols":7,"rows_kept":72,"cut":false,"hidden":false,"merged":[[64,8,64,10],[0,0,0,2],[1,0,1,2],[2,0,2,2],[3,0,3,2],[4,0,4,2]]}
[{"$error":"#VALUE!"}]
["HUD HOME-AMERICAN RESCUE PLAN ACT (HOME-ARP) "]
["HOME-ARP SERVICES AND NON-PROFITS ASSISTANCE NOFA"]
["Component A:  Tenant-Based Rental Assistance (TRBA) "]
["Instructions: \n1.Complete all blue shaded cells. \n2. Use the dropdown menu to select from available options, where provided. \n3. Green cells populate automatically."]
[null,"Applicant Name",{"$f":"IF('1_Cover page'!C11<>\"\",'1_Cover page'!C11,\"\")","v":""}]
[null,"NOFA Component","Tenant-Based Rental Assistance"]
[]
[null,"Are you applying to administer the Tenant-Based Rental Assistance part of the NOFA?"]
[]
["A","ORGANIZATIONAL CAPACITY"]
["A1","Describe your organization's experience with providing tenant based rental assistance and related services. (Please upload a list of projects/project descriptions)"]
["A2","Please specify the number of years of demonstrated experience of your organization and top three (3) successes in administering rental assistance activities?"]
["A3","Describe your organization's experience providing other services, if applicable to the defined qualifying population."]
["A4","Describe the experience of your staff in administering and delivering rental assistance to eligible households. (Please upload key staff resumes)"]
["A5","Describe your experience with policies, procedures, and implementing regulations administering tenant based rental assistance, including eligibility, inspections, rent and income analysis, landlord contracts, issuance of monthly rent payments."]
["A6","Describe and discuss any experience you have (number of years) in reporting and/or record-keeping in compliance with HOME or HUD-funded activities."]
[]
["B","ALIGNMENT TO LOCAL AND REGIONAL NEEDS"]
["B1","Specify in which parish(es) the organization intends to use HOME-ARP TBRA assistance for qualified populations."]
["B2","Are the proposed services in a Parish that is a 2020/2021 Disaster Designate Parish?"]
["B3","Specify the municipal locations and/or rural areas, as applicable intended for HOME-ARP TBRA assisted household to use the assistance.  "]
["B4","Identify your targeted population and how this funding will address their needs."]
["B5","Include data supporting the need in the designated area, how the need is met or unmet by current providers, and the urgency for the proposed services.  "]
["B6","What are the consequences if the TBRA funding is not provided?"]
[]
["C","IMPACT AND OUTCOMES"]
["C1","Describe how the target population will be reached and assessed."]
["C2","Please describe how prior activities have resulted in meaningful impact. What outcomes were achieved?"]
["C3","How will you address and overcome barriers to program participation?"]
["C4","Please provide evidence supporting the estimated number of unduplicated persons expected to benefit from the activities."]
[]
["D","COST EFFECTIVENESS"]
["D1","Provide a detailed description of how HOME-ARP funds will be used to support your program including the cost to administer services. (Indicate the requested funding for each activity and for each line item listed in your budget in the Budget section below)."]
[]
["E","COORDINATION / COLLABORATION"]
["E1","Describe any other partner entities, organization or funding sources (public or private) that the entity uses/will to best administer the program and provide rental and associated services to the qualified population.  (Please upload any cooperation agreements, commitment letters or letters of support from partner entities)."]
["E2","Describe how specific activities will be coordinated with other organizations (public or private) and other community resources (such as COCs)?  "]
["E3","Describe the organization's experience with Coordinated entry, HMIS reportinng and tracking of community needs."]
["E4","How will this coordination contribute to the planning, implementation, operation, oversight, and performance measurement of the tenant based rental assistance efforts and the overall needs of the qualifying population?"]
[]
["F","BUDGET"]
[null,"Proposed Number of Households Served:"]
[null,"Proposed Service Area:"]
[]
[null,"Estimated Costs Table","0-1 BR","2 BR","3 BR","4 BR","5+ BR"]
[null,"a. ENTER Estimated Monthly Housing Cost1"]
[null,"b. ENTER Estimated Monthly Adjusted Income"]
[null,"c. Estimated Monthly Subsidy Cost ",{"$f":"C47","v":0},{"$f":"D47","v":0},{"$f":"E47","v":0},{"$f":"F47","v":0},{"$f":"G47","v":0}]
[null,"d. ENTER length of subsidy contract in months"]
[null,"e. Total per Household Cost (c times d) ",{"$f":"C49*C50","v":0},{"$f":"D49*D50","v":0},{"$f":"E49*E50","v":0},{"$f":"F49*F50","v":0},{"$f":"G49*G50","v":0}]
[null,"f. ENTER number of families to be assisted"]
[null,"g. Basic Cost (e times f) ",{"$f":"C51*C52","v":0},{"$f":"D51*D52","v":0},{"$f":"E51*E52","v":0},{"$f":"F51*F52","v":0},{"$f":"G51*G52","v":0}]
[null,"h. ENTER Per Household Deposit Cost2"]
[null,"i. ENTER Number of Households Receiving Deposits"]
[null,"j. Total Depost Costs (h timesi)",{"$f":"C54*C55","v":0},{"$f":"D54*D55","v":0},{"$f":"E54*E55","v":0},{"$f":"F54*F55","v":0},{"$f":"G54*G55","v":0}]
[null,"k. Total Cost by BR Size (g plus j)",{"$f":"C53+C56","v":0},{"$f":"D53+D56","v":0},{"$f":"E53+E56","v":0},{"$f":"F53+F56","v":0},{"$f":"G53+G56","v":0}]
[null,"l. Total Estimated Housing Costs (Add all costs in Row K)",{"$f":"SUM(C57:G57)","v":0}]
[null,"Admin Costs"]
[null,"m. Max Admin Request (2.5% of HOME TBRA Request)",{"$f":"ROUND((C58/0.9)*0.025,0)","v":0}]
[null,"n. ENTER Admin Requested"]
[null,"o. Total HOME TBRA Request",{"$f":"IF((C61+C58)=0,0,MAX(75000,MIN(725000,(C61+C58))))","v":0}]
[]
[null,"1 Use the FMR, PJ adopted payment standard, or another estimate based upon experience."]
[null,"2 Use only if you intend to use subsidy funds for deposits. Use local real estate practice as a guide. "]
[null,"3 Calculation is based on 100% of monthly housing cost."]
[null,"NOTES"]
[null,"1. If the household demonstrates income at or greater than 50% of AMI, that household is expected to contribute to rent under HOME terms, not to exceed 30% of household income."]
[null,"2. HOME-ARP funds may not exceed 24 months."]
[null,"3. Single award will not exceed $725,000, considering a three year period."]
[null,"4. No individual awards will be issued at less than $75,000."]
[null,"5. Delivery of assistance is eligible and is not to exceed 2.5% of the total award funds."]

{"sheet":"3_Supportive Services (B)","index":2,"n_rows":68,"n_cols":3,"rows_kept":68,"cut":false,"hidden":false,"merged":[[41,3,41,5],[20,3,20,5],[0,0,0,2],[1,0,1,2],[2,0,2,2],[3,0,3,2],[4,0,4,2],[19,3,19,7]]}
[{"$error":"#VALUE!"}]
["HUD HOME-AMERICAN RESCUE PLAN ACT (HOME-ARP) "]
["HOME-ARP SERVICES AND NON-PROFITS ASSISTANCE NOFA"]
["Component B:  Supportive Services "]
["Instructions: \n1.Complete all blue shaded cells. \n2. Use the dropdown menu to select from available options, where provided. \n3. Green cells populate automatically."]
[null,"Applicant Name",{"$f":"IF('1_Cover page'!C11<>\"\",'1_Cover page'!C11,\"\")","v":""}]
[null,"NOFA Component","Supportive Services"]
[]
[null,"Are you applying to administer the Supportive Services Assistance part of the NOFA?"]
[]
["A","ORGANIZATIONAL CAPACITY"]
["A1","Describe your organization's experience with providing the the proposed program services. (Please upload a list of projects/project descriptions)"]
["A2","Please specify the number of years of demonstrated experience of your organization and top three (3) successes in administering the designate supportive services activities?"]
["A3","Describe the experience of the staff designated to provide the proposed services. (Please upload staff resumes)"]
["A4","Describe training of your staff and how it is consistent with the needs of the proposed service(s)."]
["A5","Describe your experience with policies, procedures, and implementing regulations administering the proposed services, including intake, elgibility, service provision and follow up."]
["A6","LHC will require organizations to submit monthly reports pertaining to expenditure of HOME-ARP funded activities. Describe and discuss any experience you have (number of years) in reporting and/or record-keeping in compliance with HOME-ARP and/or administrating a similar activity."]
[]
["B","ALIGNMENT TO LOCAL AND REGIONAL NEEDS"]
["B1","Specify the parish(es) intended for supportive services assistance to qualified popuations."]
["B2","Are the proposed services in a Parish that is a 2020/2021 Disaster Designate Parish?"]
["B3","Specify the municipal locations and/or rural areas, as applicable intended for HOME-ARP TBRA supportive services assistance to QP households.  "]
["B4","Identify your targeted population and explain how this funding will address their needs."]
["B5","Include data supporting the need in the designated area, how the need it met or unmet by current providers, and the urgency for the proposed services. "]
["B6","What are the consequences if the proposed services are not funded for the QP and/or for the service area?"]
[]
["C","IMPACT AND OUTCOMES"]
["C1","Describe how your entity will assess and reach the target population."]
["C2","Describe how prior activities have resulted in meaningful impact. What outcomes were achieved?"]
["C3","Describe how your entity will address and overcome barriers to program participation?"]
["C4","Please provide evidence supporting the estimated number of unduplicated persons expected to benefit from the activities."]
[]
["D","COST EFFECTIVENESS"]
["D1","Provide a detailed description of how HOME-ARP funds will be used to support your program including the cost to administer services. (In the table below, indicate the requested funding for each activity as a line item listed in your budget)."]
[]
["E","COORDINATION / COLLABORATION"]
["E1","Describe any other partner entities, organization or funding sources (public or private) that the entity uses/will to best administer the program and provide for the comprehensive needs of the vulnerable, qualified population.  (Please upload any cooperation agreements, commitment letters or letters of support from partner entities)."]
["E2","Describe how specific activities will be coordinated with other organizations (public or private) and other community resources (such as COCs)? "]
["E3","Describe the organization's experience with Coordinated entry, HMIS reportinng and tracking of community needs."]
["E4","How will this coordination contribute to the planning, implementation, operation, oversight, and performance measurement of the proposed project/program and address the overall needs of the qualifying population?"]
[]
["F","BUDGET"]
[null,"Supportive Services","Year 1 Budget"]
[null,"Child care"]
[null,"Education services"]
[null,"Employment assistance and job training"]
[null,"Food"]
[null,"Housing search and counseling services, as required to assist participants to locate, obtain, and retain suitable housing"]
[null,"Legal services"]
[null,"Mental health services"]
[null,"Outpatient health services"]
[null,"Outreach services"]
[null,"Substance abuse treatment services"]
[null,"Transportation"]
[null,"Case management"]
[null,"Mediation"]
[null,"Credit repair"]
[null,"Services for special populations"]
[null,"Financial assistance costs, limited to rental application fees, utility payments, moving costs, and one-time payments of rental arrears"]
[null,"Total Supportive Services Costs Per Year",{"$f":"SUM(C44:C59)","v":0}]
[null,"Max Admin Request",{"$f":"ROUND((C60/0.9)*0.025,0)","v":0}]
[null,"Administrative Costs"]
[null,"Total HOME-ARP Supportive Services Request Per Year",{"$f":"C60+C62","v":0}]
[null,"Total HOME-ARP Supportive Services Request 3 Year Budget",{"$f":"IF((C63)=0,0,MAX(75000,MIN(300000,(C63*3))))","v":0}]
[]
[null,"NOTES"]
[null,"1. The anticipated maximum award is $300,000, considering the use over a 3-year period."]
[null,"2. No individual awards will be issued at less than $75,000."]

{"sheet":"4_Operating Assistance (C1)","index":3,"n_rows":53,"n_cols":4,"rows_kept":53,"cut":false,"hidden":false,"merged":[[51,1,51,3],[52,1,52,3],[0,0,0,2],[1,0,1,2],[2,0,2,2],[3,0,3,2],[4,0,4,2],[10,0,11,0],[16,1,16,2],[48,1,48,3],[49,1,49,3],[50,1,50,3]]}
[{"$error":"#VALUE!"}]
["HUD HOME-AMERICAN RESCUE PLAN ACT (HOME-ARP) "]
["HOME-ARP SERVICES AND NON-PROFITS ASSISTANCE NOFA"]
["Component C1:  Non-Profit Operating Assistance "]
["Instructions: \n1.Complete all blue shaded cells. \n2. Use the dropdown menu to select from available options, where provided. \n3. Green cells populate automatically."]
[null,"Applicant Name",{"$f":"IF('1_Cover page'!C11<>\"\",'1_Cover page'!C11,\"\")","v":""}]
[null,"NOFA Component","Non-Profit Operating Assistance"]
[]
[null,"Are you applying for C.1 Nonprofit Operating Assistant part of the NOFA?"]
[]
["Core Criteria","Have you received HOME-ARP funding or have reasonable expectation of receiving based on an existing HOME-ARP application?"]
[null,"Which HOME-ARP funded activity are your administer or have reasonable expectation to administer based on an existing applicatiomN.including the Non-Congregate Shelter (NCS) Program or the Homeless and Housing Stability Affordable Rental Housing Development (HHSD) Program, TBRA and Supportive Services."]
[]
["A","EXPERIENCE WITH QUALIFYING POPULATIONS"]
["A1","Identify which Qualifying Population(s) your organization has served, types of services, and overall experience in the services? \n(Full definitions can be found at this link: https://www.hud.gov/sites/dfiles/OCHCO/documents/2021-10cpdn.pdf)\n\nQP 1. Homeless, as defined in 24 CFR 91.5  \n\nQP 2. At risk of Homelessness, as defined in 24 CFR 91.5\n\nQP 3. Fleeing, or Attempting to Flee, Domestic Violence, Dating Violence, Sexual Assault, Stalking, or Human Trafficking, as defined by HUD.\n\nQP 4. Other Populations where providing supportive services or assistance would prevent the family’s homelessness or would serve those with the greatest risk of housing instability."]
[]
["B","PLANS FOR CURRENT OR FUTURE HOME- ARP FUNDING APPLICATION"]
["B1","Please describe the current status of your organization in receiving funding under another HOME ARP program.  \n\n"]
[]
["C","FEASIBILITY OF FUTURE AWARD"]
["C1","Describe the use of these operating funds for the nonprofit to address a need within the State/parish/community for the qualified populations?"]
["C2","Please provide organization’s total general operating budget."]
[]
["D","ORGANIZATIONAL NEED"]
["D1","Provide a detailed explanation of each budget item, outlining how the funds will be utilized to support and enhance the overall operations of the organization. Clearly articulate how the requested grant aligns with HOME-ARP's mission and grant priorities."]
[]
["E","LINE ITEM BUDGET"]
[null,"LINE ITEMS","EXPLANATION","Budget "]
[null,"Employee salaries, wages, and other \nemployee compensation and benefits\nnot tied to any specific program, project, or activity"]
[null,"Employee Education"]
[null,"Employee Training"]
[null,"Employee Travel"]
[null,"Rent of office space or other spaces\nused for the organization’s general operations"]
[null,"Utilities"]
[null,"Communication"]
[null,"Insurance"]
[null,"Equipment"]
[null,"Materials"]
[null,"Supplies"]
[null,"\"Additional Item 1\""]
[null,"\"Additional Item 2\""]
[null,"\"Additional Item 3\""]
[null,"\"Additional Item 4\""]
[null,null,"Total Operating Assistance Requested per Fiscal Year:",{"$f":"SUM(D29:D43)","v":0}]
[null,null,"Max Possible Operating Assistance Per Fiscal Year:",{"$f":"IF(AND(C9=\"Yes\", '5_Capacity Building (C2)'!C9=\"Yes\"), MAX(0.5*C22, 75000), IF(OR('4_Operating Assistance (C1)'!C9=\"Yes\",  '5_Capacity Building (C2)'!C9=\"Yes\"), MAX(0.5*C22, 50000), 0))","v":0}]
[]
[]
[null,"NOTES"]
[null,"1. HUD has established maximum limits on how much a given nonprofit may receive within that organization’s given fiscal year."]
[null,"• An organization receiving funding only for Nonprofit Operating or only Capacity Building is limited to the greater of: 50% of the organization’s general operating budget or $50,000."]
[null,"• An organization receiving funding both for Nonprofit Operating and Capacity Building is limited to the greater of: 50% of the organization’s general operating budget or $75,000."]
[null,"2. The caps on HOME-ARP Nonprofit Operating and Capacity Building assistance apply to the organization as a whole and include all funding sources. Thus, a nonprofit is required to disclose to LHC and account for any such assistance of HOME-ARP Nonprofit Operating or Capacity Building funding if received from other entitlement areas."]
[null,"3. The LHC award term is anticipated for a 3-year period, or earlier if the HOME-ARP associated services conclude."]

{"sheet":"5_Capacity Building (C2)","index":4,"n_rows":47,"n_cols":14,"rows_kept":47,"cut":false,"hidden":false,"merged":[[42,1,42,3],[43,1,43,3],[44,1,44,3],[45,1,45,3],[46,1,46,3],[0,0,0,2],[16,1,16,2],[1,0,1,2],[2,0,2,2],[3,0,3,2],[4,0,4,2],[10,0,11,0]]}
[{"$error":"#VALUE!"}]
["HUD HOME-AMERICAN RESCUE PLAN ACT (HOME-ARP) "]
["HOME-ARP SERVICES AND NON-PROFITS ASSISTANCE NOFA"]
["Component C2:  Non-Profit Capacity Building Assistance"]
["Instructions: \n1.Complete all blue shaded cells. \n2. Use the dropdown menu to select from available options, where provided. \n3. Green cells populate automatically."]
[null,"Applicant Name",{"$f":"IF('1_Cover page'!C11<>\"\",'1_Cover page'!C11,\"\")","v":""}]
[null,"NOFA Component","Non-Profit Capacity Building Assistance"]
[]
[null,"Are you applying for the Nonprofit Capacity Building Assistance part of the NOFA?"]
[]
["Core Criteria","Have you received HOME-ARP funding or have reasonable expectation of receiving HOME-ARP funds based on an existing HOME-ARP application?"]
[null,"Which HOME-ARP funded activity are you administering or have reasonable expectation to administer based on an existing application? Select all that apply.   "]
[]
["A","EXPERIENCE WITH QUALIFYING POPULATIONS"]
["A1","Which Qualifying Population(s) has your organization served? (Full definitions can be found at this link: https://www.hud.gov/sites/dfiles/OCHCO/documents/2021-10cpdn.pdf)\n\nQP 1. Homeless, as defined in 24 CFR 91.5  \n\nQP 2. At risk of Homelessness, as defined in 24 CFR 91.5\n\nQP 3. Fleeing, or Attempting to Flee, Domestic Violence, Dating Violence, Sexual Assault, Stalking, or Human Trafficking, as defined by HUD.\n\nQP 4. Other Populations where providing supportive services or assistance would prevent the family’s homelessness or would serve those with the greatest risk of housing instability."]
[]
["B","PLANS FOR CURRENT OR FUTURE HOME- ARP FUNDING APPLICATION"]
["B1","Please decribe the current status of your organization in receiving funding under another HOME ARP program.  "]
[]
["C","FEASIBILITY OF FUTURE AWARD"]
["C1","Describe the use of these capacity building  funds for the nonprofit to address a need within the State/parish/community for the qualified populations?"]
["C2","Please provide organization’s total general operating budget."]
[]
["D","ORGANIZATIONAL NEED"]
["D1","Provide a detailed explanation of each budget item, outlining how the funds will be utilized to build your organization's capacity in order to serve the increased number of individuals and families the HOME ARP funds will lead to.  Clearly articulate how the requested grant aligns with HOME-ARP's mission and grant priorities.",null,null,null,null,null,null,null,null,null,null,null,"No"]
[]
["E","LINE ITEM BUDGET"]
[null,"LINE ITEMS","EXPLANATION","Budget"]
[null,"Wages/benefits for new hires whose\npresence will expand the organization’s \ncapacity to deliver HOME-ARP activities"]
[null,"Employee training or other staff development that \nenhances an employee’s skill set and expertise \nrelated to serving HOME-ARP populations"]
[null,"Equipment (e.g., computer software \nor programs that improve organizational\n processes)"]
[null,"Upgrades to Materials"]
[null,"Upgrades to Supplies"]
[null,"Contracts for technical assistance or for consultants with expertise related to the HOME-ARP qualifying populations."]
[null,"\"Additional Item 1\""]
[null,"\"Additional Item 2\""]
[null,"\"Additional Item 3\""]
[null,"\"Additional Item 4\""]
[null,null,"Total Capacity Building Requested per Fiscal Year:",{"$f":"SUM(D29:D38)","v":0}]
[null,null,"Max Possible Capacity Building Requested per Fiscal Year:",{"$f":"IF(AND('4_Operating Assistance (C1)'!C9=\"Yes\", C9=\"Yes\"), MAX(0.5*C22, 75000), IF(OR('4_Operating Assistance (C1)'!C9=\"Yes\", C9=\"Yes\"), MAX(0.5*C22, 50000), 0))","v":0}]
[]
[null,"NOTES"]
[null,"1. HUD has established maximum limits on how much a given nonprofit may receive within that organization’s given fiscal year."]
[null,"• An organization receiving funding only for Nonprofit Operating or only Capacity Building is limited to the greater of: 50% of the organization’s general operating budget or $50,000."]
[null,"• An organization receiving funding both for Nonprofit Operating and Capacity Building is limited to the greater of: 50% of the organization’s general operating budget or $75,000."]
[null,"2. The caps on HOME-ARP Nonprofit Operating and Capacity Building assistance apply to the organization as a whole and include all funding sources. Thus, a nonprofit is required to disclose to LHC and account for any such assistance of HOME-ARP Nonprofit Operating or Capacity Building funding if received from other entitlement areas."]
[null,"3. The LHC award term is anticipated for a 3-year period, or earlier if the HOME-ARP associated services conclude."]

{"sheet":"6_Checklist","index":5,"n_rows":16,"n_cols":3,"rows_kept":16,"cut":false,"hidden":false,"merged":[[1,0,1,3],[2,0,2,3],[3,0,3,3],[4,0,5,3],[0,0,0,3]]}
[{"$error":"#VALUE!"}]
["HUD HOME-AMERICAN RESCUE PLAN ACT (HOME-ARP) "]
["HOME-ARP SERVICES AND NON-PROFITS ASSISTANCE NOFA"]
["Checklist"]
["Complete all blue shaded cells. Documents to be Uploaded with the Application are noted in dark blue. Please upload the requested documents though the link used to submit application. "]
[]
[null,"Applicant Name",{"$f":"IF('1_Cover page'!C11<>\"\",'1_Cover page'!C11,\"\")","v":""}]
[]
[1,"Certificate of good standing/registration from the LA Secretary of State."]
[2,"Organizational Chart/Management Structure"]
[3,"Staff Resumes"]
[4,"Applicant's most recent (2023) Financial Statements"]
[5,"Cash Flow Statement"]
[6,"Organization's Experience/Projects"]
[7,"Partner Entities Agreements/Letters of Commitment "]
[8,"If there has been any litigation or bankruptcies during the past seven years, or if there is pending litigation or judgment, attach a list describing these incidences."]

{"sheet":"List","index":6,"n_rows":106,"n_cols":9,"rows_kept":106,"cut":false,"hidden":true,"merged":[]}
["Louisiana Parishes",null,"Congressional District",null,"LA BOSCOC",null,"House Districts",null,"Senate Districs"]
["Acadia Parish",null,"District 1",null,"LA-509: Baton Rouge",null,"District 1",null,"District 1"]
["Allen Parish",null,"District 2",null,"LA-509: Houma",null,"District 2",null,"District 2"]
["Ascension Parish",null,"District 3",null,"LA-509: Lake Charles",null,"District 3",null,"District 3"]
["Assumption Parish",null,"District 4",null,"LA-509: Plaquemines",null,"District 4",null,"District 4"]
["Avoyelles Parish",null,"District 5",null,"LA-509: Natchitoches",null,"District 5",null,"District 5"]
["Beauregard Parish",null,"District 6",null,"LA-500: Lafayette",null,"District 6",null,"District 6"]
["Bienville Parish",null,null,null,"LA-502: Shreveport",null,"District 7",null,"District 7"]
["Bossier Parish",null,null,null,"LA-503: NOLA",null,"District 8",null,"District 8"]
["Caddo Parish",null,null,null,"LA-505: Monroe",null,"District 9",null,"District 9"]
["Calcasieu Parish",null,null,null,"LA-506: Northlake",null,"District 10",null,"District 10"]
["Caldwell Parish",null,null,null,"LA-507: Alexandria",null,"District 11",null,"District 11"]
["Cameron Parish",null,null,null,null,null,"District 12",null,"District 12"]
["Catahoula Parish",null,null,null,null,null,"District 13",null,"District 13"]
["Claiborne Parish",null,null,null,null,null,"District 14",null,"District 14"]
["Concordia Parish",null,null,null,null,null,"District 15",null,"District 15"]
["DeSoto Parish",null,null,null,null,null,"District 16",null,"District 16"]
["East Baton Rouge Parish",null,null,null,null,null,"District 17",null,"District 17"]
["East Carroll Parish",null,null,null,null,null,"District 18",null,"District 18"]
["East Feliciana Parish",null,null,null,null,null,"District 19",null,"District 19"]
["Evangeline Parish",null,null,null,null,null,"District 20",null,"District 20"]
["Franklin Parish",null,null,null,null,null,"District 21",null,"District 21"]
["Grant Parish",null,null,null,null,null,"District 22",null,"District 22"]
["Iberia Parish",null,null,null,null,null,"District 23",null,"District 23"]
["Iberville Parish",null,null,null,null,null,"District 24",null,"District 24"]
["Jackson Parish",null,null,null,null,null,"District 25",null,"District 25"]
["Jefferson Parish",null,null,null,null,null,"District 26",null,"District 26"]
["Jefferson Davis Parish",null,null,null,null,null,"District 27",null,"District 27"]
["LaSalle Parish",null,null,null,null,null,"District 28",null,"District 28"]
["Lafayette Parish",null,null,null,null,null,"District 29",null,"District 29"]
["Lafourche Parish",null,null,null,null,null,"District 30",null,"District 30"]
["Lincoln Parish",null,null,null,null,null,"District 31",null,"District 31"]
["Livingston Parish",null,null,null,null,null,"District 32",null,"District 32"]
["Madison Parish",null,null,null,null,null,"District 33",null,"District 33"]
["Morehouse Parish",null,null,null,null,null,"District 34",null,"District 34"]
["Natchitoches Parish",null,null,null,null,null,"District 35",null,"District 35"]
["Orleans Parish",null,null,null,null,null,"District 36",null,"District 36"]
["Ouachita Parish",null,null,null,null,null,"District 37",null,"District 37"]
["Plaquemines Parish",null,null,null,null,null,"District 38",null,"District 38"]
["Pointe Coupee Parish",null,null,null,null,null,"District 39",null,"District 39"]
["Rapides Parish",null,null,null,null,null,"District 40"]
["Red River Parish",null,null,null,null,null,"District 41"]
["Richland Parish",null,null,null,null,null,"District 42"]
["Sabine Parish",null,null,null,null,null,"District 43"]
["St. Bernard Parish",null,null,null,null,null,"District 44"]
["St. Charles Parish",null,null,null,null,null,"District 45"]
["St. Helena Parish",null,null,null,null,null,"District 46"]
["St. James Parish",null,null,null,null,null,"District 47"]
["St. John The Baptist Parish",null,null,null,null,null,"District 48"]
["St. Landry Parish",null,null,null,null,null,"District 49"]
["St. Martin Parish",null,null,null,null,null,"District 50"]
["St. Mary Parish",null,null,null,null,null,"District 51"]
["St. Tammany Parish",null,null,null,null,null,"District 52"]
["Tangipahoa Parish",null,null,null,null,null,"District 53"]
["Tensas Parish",null,null,null,null,null,"District 54"]
["Terrebonne Parish",null,null,null,null,null,"District 55"]
["Union Parish",null,null,null,null,null,"District 56"]
["Vermilion Parish",null,null,null,null,null,"District 57"]
["Vernon Parish",null,null,null,null,null,"District 58"]
["Washington Parish",null,null,null,null,null,"District 59"]
["Webster Parish",null,null,null,null,null,"District 60"]
["West Baton Rouge Parish",null,null,null,null,null,"District 61"]
["West Carroll Parish",null,null,null,null,null,"District 62"]
["West Feliciana Parish",null,null,null,null,null,"District 63"]
["Winn Parish",null,null,null,null,null,"District 64"]
[null,null,null,null,null,null,"District 65"]
[null,null,null,null,null,null,"District 66"]
[null,null,null,null,null,null,"District 67"]
[null,null,null,null,null,null,"District 68"]
[null,null,null,null,null,null,"District 69"]
[null,null,null,null,null,null,"District 70"]
[null,null,null,null,null,null,"District 71"]
[null,null,null,null,null,null,"District 72"]
[null,null,null,null,null,null,"District 73"]
[null,null,null,null,null,null,"District 74"]
[null,null,null,null,null,null,"District 75"]
[null,null,null,null,null,null,"District 76"]
[null,null,null,null,null,null,"District 77"]
[null,null,null,null,null,null,"District 78"]
[null,null,null,null,null,null,"District 79"]
[null,null,null,null,null,null,"District 80"]
[null,null,null,null,null,null,"District 81"]
[null,null,null,null,null,null,"District 82"]
[null,null,null,null,null,null,"District 83"]
[null,null,null,null,null,null,"District 84"]
[null,null,null,null,null,null,"District 85"]
[null,null,null,null,null,null,"District 86"]
[null,null,null,null,null,null,"District 87"]
[null,null,null,null,null,null,"District 88"]
[null,null,null,null,null,null,"District 89"]
[null,null,null,null,null,null,"District 90"]
[null,null,null,null,null,null,"District 91"]
[null,null,null,null,null,null,"District 92"]
[null,null,null,null,null,null,"District 93"]
[null,null,null,null,null,null,"District 94"]
[null,null,null,null,null,null,"District 95"]
[null,null,null,null,null,null,"District 96"]
[null,null,null,null,null,null,"District 97"]
[null,null,null,null,null,null,"District 98"]
[null,null,null,null,null,null,"District 99"]
[null,null,null,null,null,null,"District 100"]
[null,null,null,null,null,null,"District 101"]
[null,null,null,null,null,null,"District 102"]
[null,null,null,null,null,null,"District 103"]
[null,null,null,null,null,null,"District 104"]
[null,null,null,null,null,null,"District 105"]